bitfinex-derivatives/quotes_SOLF0:USTF0_20250625
["timestamp","ask_amount","ask_price","bid_price","bid_amount"]
[1750818884136,35.38,145.93,145.9,6.37502721]
[1750818884738,3.37741116,145.95,145.9,6.37502721]
[1750818884942,35.38,145.93,145.91,6.37502721]
[1750818885345,35.38,145.93,145.91,13.22502721]
[1750818885641,35.38,145.93,145.91,6.37502721]
[1750818885842,35.38,145.93,145.92,6.8495]
[1750818886046,35.38,145.93,145.92,13.22452721]
[1750818886438,35.38,145.93,145.92,6.8495]
[1750818887237,35.38,145.96,145.92,6.37502721]
[1750818887636,35.38,145.96,145.94,6.8486]
[1750818887842,35.38,145.96,145.94,6.37502721]
[1750818888034,35.38,145.96,145.93,6.37502721]
[1750818888235,42.2279,145.96,145.94,6.37502721]
[1750818888435,42.2279,145.96,145.93,6.37502721]
[1750818888638,35.38,145.96,145.93,6.37502721]
[1750818888844,42.2278,145.96,145.94,6.37502721]
[1750818889142,35.38,145.96,145.94,6.37502721]
[1750818889442,35.38,145.96,145.94,13.22352721]
[1750818890638,35.38,145.96,145.94,6.8485]
[1750818891138,42.2276,145.96,145.94,6.37502721]
[1750818891538,42.2276,145.96,145.93,13.22392721]
[1750818892143,35.38,145.96,145.94,6.8484]
[1750818892944,42.2276,145.96,145.93,13.22392721]
[1750818894745,42.2276,145.96,145.9,35.38]
[1750818894746,35.38,145.96,145.92,13.22432721]
[1750818895250,42.228,145.96,145.92,13.22432721]
[1750818895551,35.38,145.96,145.92,13.22432721]
[1750818895748,35.38,145.96,145.92,6.8493]
[1750818895945,6.8486,145.94,145.91,6.37502721]
[1750818896146,3.37741116,145.95,145.89,8.62322721]
[1750818896351,10.22581116,145.95,145.91,6.8495]
[1750818897451,6.8484,145.95,145.92,6.8491]
[1750818897947,35.38,145.96,145.9,6.37502721]
[1750818898155,35.38,145.96,145.91,9.75243837]
[1750818898554,6.8481,145.95,145.92,6.8492]
[1750818898859,35.38,145.96,145.9,6.37502721]
[1750818899455,3.37741116,145.95,145.89,8.62322721]
[1750818899960,6.8494,145.93,145.9,6.8501]
[1750818900553,6.8487,145.94,145.91,6.8499]
[1750818901565,6.849,145.93,145.9,6.8502]
[1750818901764,3.37741116,145.95,145.89,8.62322721]
[1750818902363,6.8493,145.93,145.9,6.8502]
[1750818903262,6.8493,145.93,145.89,15.47392721]
[1750818904964,6.8493,145.93,145.89,13.22572721]
[1750818905162,3.37741116,145.91,145.88,6.37502721]
[1750818905464,3.37741116,145.91,145.85,14.98355179]
[1750818905465,38.73741116,145.91,145.87,6.37502721]
[1750818905663,35.36,145.91,145.87,6.37502721]
[1750818906262,35.36,145.94,145.87,9.75243837]
[1750818906562,35.36,145.94,145.88,6.37502721]
[1750818907260,6.8493,145.93,145.89,6.37502721]
[1750818907454,35.36,145.94,145.89,6.37502721]
[1750818908067,3.37741116,145.93,145.89,13.22572721]
[1750818908258,3.37741116,145.93,145.89,6.8507]
[1750818908459,3.37741116,145.93,145.89,13.22572721]
[1750818909166,6.8497,145.92,145.89,13.22572721]
[1750818909561,3.37741116,145.93,145.9,6.8504]
[1750818909767,35.36,145.94,145.89,9.75243837]
[1750818910068,35.36,145.94,145.9,6.37502721]
[1750818910267,38.73741116,145.97,145.91,6.37502721]
[1750818910464,38.73741116,145.97,145.92,6.37502721]
[1750818911160,6.8479,145.96,145.93,6.8488]
[1750818911757,45.58461116,145.97,145.94,6.8485]
[1750818911965,35.36,145.97,145.94,6.37502721]
[1750818913164,42.2074,145.97,145.94,13.22332721]
[1750818913763,35.36,145.97,145.95,6.8478]
[1750818913962,35.36,145.97,145.94,6.37502721]
[1750818914370,35.36,145.97,145.95,6.37502721]
[1750818915165,42.2073,145.97,145.95,6.37502721]
[1750818915367,35.36,145.97,145.95,6.37502721]
[1750818915562,35.36,145.97,145.94,6.37502721]
[1750818915767,35.36,145.97,145.95,6.8477]
[1750818916470,35.36,145.97,145.96,6.8476]
[1750818917367,3.37741116,146.0,145.95,6.37502721]
[1750818917368,10.22331116,146.0,145.95,6.37502721]
[1750818917567,35.36,146.0,145.96,6.37502721]
[1750818917868,6.847,145.98,145.96,6.37502721]
[1750818918174,38.73741116,146.0,145.95,6.37502721]
[1750818918771,6.8471,145.98,145.95,13.22312721]
[1750818918969,38.73741116,146.04,145.97,3.37741116]
[1750818919171,35.36,146.07,145.99,3.37741116]
[1750818919363,35.36,146.08,146.02,6.37502721]
[1750818919869,35.36,146.08,146.03,6.37502721]
[1750818920066,35.36,146.08,146.04,6.37502721]
[1750818920375,35.36,146.08,146.03,6.37502721]
[1750818920608,35.36,146.08,146.04,6.37502721]
[1750818921171,35.36,146.08,146.03,6.37502721]
[1750818921379,42.2022,146.08,146.04,6.8437]
[1750818921565,35.36,146.08,146.04,6.8437]
[1750818923373,6.8426,146.07,146.04,6.8437]
[1750818923762,591.7,146.11,146.03,9.71022735]
[1750818923969,38.71741116,146.1,146.04,6.33281619]
[1750818924368,6.8423,146.08,146.04,13.17641619]
[1750818925074,6.8425,146.07,146.04,6.8436]
[1750818925759,35.34,146.1,146.02,6.33281619]
[1750818925965,35.34,146.1,146.04,9.71022735]
[1750818926173,35.34,146.1,146.05,2.2101]
[1750818927477,6.8418,146.09,146.06,6.8426]
[1750818927977,35.34,146.1,146.05,9.0533]
[1750818928173,35.34,146.1,146.05,2.2101]
[1750818929066,35.34,146.13,146.08,3.37741116]
[1750818929272,3.37741116,146.15,146.08,3.37741116]
[1750818929470,35.34,146.14,146.08,3.37741116]
[1750818929770,35.34,146.14,146.11,6.8402]
[1750818930272,6.8399,146.13,146.08,38.71741116]
[1750818930468,35.34,146.14,146.06,11.91042735]
[1750818930675,6.8405,146.12,146.06,11.91042735]
[1750818930975,6.8405,146.12,146.06,5.57761116]
[1750818931370,6.8405,146.12,146.08,6.8417]
[1750818931564,6.8405,146.12,146.05,46.11631619]
[1750818931565,3.37741116,146.13,146.05,4.4635]
[1750818932780,6.8408,146.11,146.07,6.8423]
[1750818932978,3.37741116,146.13,146.07,6.8423]
[1750818935281,6.841,146.11,146.07,6.8423]
[1750818935677,6.841,146.11,146.08,6.842]
[1750818935881,3.37741116,146.13,146.05,4.4635]
[1750818936285,3.37741116,146.13,146.07,6.8423]
[1750818936788,6.8411,146.1,146.07,6.8423]
[1750818937181,3.37741116,146.13,146.08,6.842]
[1750818937376,6.8408,146.11,146.08,6.842]
[1750818937583,3.37741116,146.13,146.05,4.4635]
[1750818937786,3.37741116,146.13,146.07,6.8421]
[1750818938284,3.37741116,146.11,146.06,6.8429]
[1750818938487,35.32,146.1,146.06,6.8429]
[1750818939191,6.8418,146.09,146.06,6.8429]
[1750818941690,6.8425,146.07,146.05,4.4635]
[1750818941998,3.37741116,146.07,146.0,3.37741116]
[1750818942296,3.37741116,146.05,145.99,35.32]
[1750818942487,3.37741116,146.05,145.98,6.9162]
[1750818943284,6.8444,146.03,145.99,6.8459]
[1750818945993,3.37741116,146.05,145.98,4.653]
[1750818946200,3.37741116,146.03,145.98,2.3351]
[1750818946392,35.4,146.02,145.98,2.3351]
[1750818947299,6.8456,146.01,145.98,2.3351]
[1750818948392,35.4,146.02,145.98,2.3351]
[1750818948592,35.4,146.02,145.98,9.1818]
[1750818949299,35.4,146.02,145.96,35.32]
[1750818949498,35.4,146.02,145.94,14.33472735]
[1750818949897,6.846,146.0,145.96,6.8474]
[1750818950696,6.846,146.0,145.97,6.847]
[1750818951598,6.8455,146.01,145.95,6.33281619]
[1750818952003,35.4,146.02,145.95,6.33281619]
[1750818952304,6.8458,146.0,145.96,6.33281619]
[1750818952598,42.2449,146.02,145.99,6.846]
[1750818952901,35.4,146.02,145.97,6.33281619]
[1750818953097,35.4,146.02,145.96,9.71022735]
[1750818953304,35.4,146.02,145.97,6.33281619]
[1750818953900,6.8456,146.01,145.98,6.8464]
[1750818954096,35.4,146.02,145.96,6.33281619]
[1750818955003,6.846,146.0,145.97,6.8469]
[1750818955205,6.846,146.0,145.97,13.17971619]
[1750818955404,35.4,146.02,145.97,6.33281619]
[1750818955804,6.8456,146.01,145.98,6.8466]
[1750818956301,42.245,146.02,145.99,6.8461]
[1750818957711,35.4,146.02,145.98,6.33281619]
[1750818958012,35.4,146.02,145.99,6.33281619]
[1750818958203,38.77741116,146.05,145.99,6.33281619]
[1750818958603,35.4,146.05,145.99,6.33281619]
[1750818958803,35.4,146.05,146.01,6.33281619]
[1750818959001,38.77741116,146.05,146.01,6.33281619]
[1750818959206,6.8442,146.04,146.01,13.17791619]
[1750818959410,6.8442,146.04,146.01,6.8451]
[1750818959911,38.77741116,146.05,146.0,15.37221619]
[1750818960098,38.77741116,146.05,145.99,2.2338]
[1750818960099,38.77741116,146.05,145.99,6.33281619]
[1750818960305,38.77741116,146.05,146.0,6.33281619]
[1750818960502,6.8446,146.03,146.0,13.17831619]
[1750818960704,6.8446,146.03,146.0,6.33281619]
[1750818961212,6.8441,146.04,146.01,6.8452]
[1750818961416,35.4,146.05,146.01,6.33281619]
[1750818961611,42.2436,146.05,146.02,6.8445]
[1750818962511,42.2436,146.05,146.02,13.17731619]
[1750818962702,35.4,146.05,146.02,6.33281619]
[1750818963305,42.2436,146.05,146.03,6.33281619]
[1750818965315,6.8439,146.04,146.02,6.33281619]
[1750818965917,6.8443,146.03,146.02,6.33281619]
[1750818966218,35.4,146.05,146.02,6.33281619]
[1750818966419,35.4,146.05,146.03,6.33281619]
[1750818966718,38.77741116,146.08,146.03,6.33281619]
[1750818967517,35.4,146.08,146.04,6.33281619]
[1750818968019,35.4,146.08,146.05,6.33281619]
[1750818969312,35.4,146.08,146.06,6.8429]
[1750818969517,35.4,146.08,146.05,6.33281619]
[1750818970017,6.8425,146.07,146.05,6.33281619]
[1750818971219,6.8425,146.07,146.05,13.17621619]
[1750818971728,42.2422,146.08,146.05,6.33281619]
[1750818971929,35.4,146.08,146.05,6.33281619]
[1750818972523,35.4,146.08,146.06,6.8426]
[1750818972921,35.4,146.08,146.05,6.33281619]
[1750818973522,35.4,146.08,146.07,6.8425]
[1750818976425,3.37741116,146.1,146.09,6.8415]
[1750818976626,35.34,146.11,146.07,6.33281619]
[1750818977732,35.34,146.11,146.1,6.8411]
[1750818979036,35.34,146.11,146.09,13.19362623]
[1750818979642,38.71741116,146.12,146.1,6.8408]
[1750818981841,45.55761116,146.12,146.1,6.8408]
[1750818983741,38.71741116,146.12,146.1,6.8408]
[1750818985338,45.55761116,146.12,146.1,6.8408]
[1750818986347,38.71741116,146.12,146.1,6.8408]
[1750818986545,35.34,146.12,146.1,6.8408]
[1750818987647,35.34,146.12,146.09,6.35222623]
[1750818987851,38.71741116,146.12,146.08,6.35222623]
[1750818988249,38.71741116,146.12,146.07,6.35222623]
[1750818988449,6.8408,146.11,146.08,6.8417]
[1750818989446,6.8408,146.11,146.08,13.19392623]
[1750818991558,6.8408,146.11,146.09,6.8415]
[1750818991753,45.55771116,146.12,146.09,6.8415]
[1750818991952,38.71741116,146.12,146.09,6.8415]
[1750818993159,6.8406,146.11,146.09,6.8415]
[1750818994458,6.8413,146.1,146.08,6.35222623]
[1750818994661,6.8413,146.1,146.07,6.35222623]
[1750818994857,38.71741116,146.12,146.08,6.8416]
[1750818995053,6.8408,146.11,146.08,6.8416]
[1750818996266,6.8408,146.11,146.08,13.19382623]
[1750818996565,45.55771116,146.12,146.09,6.8412]
[1750818996767,38.71741116,146.12,146.09,6.8412]
[1750818997153,35.34,146.12,146.09,6.8412]
[1750818997462,35.34,146.12,146.1,6.841]
[1750818999163,42.1802,146.12,146.1,6.841]
[1750818999862,42.1802,146.12,146.09,13.19352623]
[1750819000261,3.37741116,146.1,146.08,6.35222623]
[1750819000459,3.37741116,146.1,146.07,6.35222623]
[1750819000659,10.21851116,146.1,146.07,6.35222623]
[1750819001259,10.21851116,146.1,146.07,13.19442623]
[1750819002069,10.21851116,146.1,146.08,6.35222623]
[1750819002670,6.8415,146.09,146.08,6.35222623]
[1750819002968,6.8415,146.09,146.07,6.35222623]
[1750819004166,6.8415,146.09,146.07,13.19452623]
[1750819004968,6.8415,146.09,146.08,6.35222623]
[1750819005973,10.21871116,146.1,146.07,6.35222623]
[1750819006271,3.37741116,146.1,146.07,13.19462623]
[1750819006975,3.37741116,146.1,146.08,6.35222623]
[1750819007176,6.8416,146.09,146.08,6.35222623]
[1750819010076,6.842,146.08,146.07,6.35222623]
[1750819010269,45.51941116,146.08,146.07,6.35222623]
[1750819010469,45.51941116,146.08,146.06,8.46963497]
[1750819010774,6.8425,146.07,146.06,8.46963497]
[1750819014376,4.12714896,146.07,146.03,8.46963497]
[1750819014583,3.37741116,146.04,146.03,8.46963497]
[1750819014780,45.52171116,146.04,146.02,8.46963497]
[1750819015884,6.8443,146.03,146.02,8.46963497]
[1750819016384,42.1441,146.04,146.02,8.46963497]
[1750819016587,35.3,146.04,146.02,8.46963497]
[1750819016986,45.52031116,146.07,146.04,6.8439]
[1750819017188,38.67741116,146.07,146.03,8.46963497]
[1750819017690,3.37741116,146.05,146.02,8.46963497]
[1750819017887,3.37741116,146.03,146.01,8.46963497]
[1750819018086,6.8457,146.0,145.99,8.46963497]
[1750819018594,6.8457,146.0,145.98,8.46963497]
[1750819019488,6.8457,146.0,145.97,15.31643497]
[1750819020687,42.1456,146.01,145.98,6.8465]
[1750819020890,42.1456,146.01,145.98,15.31613497]
[1750819021502,35.3,146.01,145.97,8.46963497]
[1750819021799,35.3,146.01,145.98,8.46963497]
[1750819022401,35.3,146.01,145.99,6.8459]
[1750819023603,35.3,146.01,145.98,8.46963497]
[1750819024594,35.3,146.01,145.99,6.8459]
[1750819024791,3.37771225,146.0,145.95,8.46963497]
[1750819025002,3.37771225,145.98,145.94,10.88663497]
[1750819025203,35.3,146.01,145.95,8.46963497]
[1750819025402,35.3,146.01,145.94,8.07001225]
[1750819025403,35.3,146.01,145.96,8.46963497]
[1750819025602,35.3,146.01,145.95,8.46963497]
[1750819026004,35.3,146.01,145.97,6.8468]
[1750819026501,42.1456,146.01,145.98,6.8467]
[1750819026701,35.3,146.01,145.95,8.46963497]
[1750819026908,35.3,146.01,145.96,2.3954]
[1750819027308,35.32,146.04,145.98,8.46963497]
[1750819027703,6.8446,146.03,146.0,6.8455]
[1750819027904,35.32,146.04,145.98,8.46963497]
[1750819028798,35.32,146.04,145.98,11.84734722]
[1750819029102,38.69771225,146.07,146.01,8.46963497]
[1750819029298,38.69771225,146.07,146.0,11.84734722]
[1750819029498,6.843,146.06,146.03,6.8441]
[1750819030208,6.8434,146.05,146.02,6.8446]
[1750819030398,3.37771225,146.05,146.01,2.4175]
[1750819031699,6.8442,146.04,146.01,9.2626]
[1750819031909,3.37771225,146.05,145.99,8.46963497]
[1750819032204,3.37771225,146.04,146.0,8.46963497]
[1750819032595,10.22181225,146.04,146.01,6.8452]
[1750819034010,6.8444,146.03,146.0,15.31513497]
[1750819036408,38.69771225,146.02,145.97,10.68683497]
[1750819036612,35.32,146.01,145.97,10.68683497]
[1750819037115,35.32,146.01,145.98,6.8464]
[1750819037508,42.1653,146.01,145.99,6.8462]
[1750819039610,35.32,146.01,146.0,6.8457]
[1750819039910,38.67771225,146.04,145.98,8.46963497]
[1750819040110,6.8451,146.02,146.0,6.8457]
[1750819040409,38.67771225,146.04,146.0,6.8457]
[1750819041113,6.8445,146.03,146.0,6.8457]
[1750819044117,45.52181225,146.04,146.01,6.8453]
[1750819045817,6.8444,146.03,146.0,6.8455]
[1750819048317,6.8444,146.03,146.01,6.8452]
[1750819048511,45.5193403,146.04,146.01,6.8452]
[1750819049419,35.3,146.07,146.01,8.46963497]
[1750819049811,3.3753403,146.06,146.01,8.46963497]
[1750819050013,6.8438,146.05,146.02,6.8448]
[1750819050418,3.3753403,146.06,146.02,6.8448]
[1750819050614,6.8435,146.05,146.02,6.8448]
[1750819051122,6.8444,146.03,146.01,8.46963497]
[1750819051306,6.8444,146.03,146.0,8.46963497]
[1750819051504,6.8444,146.03,146.0,15.31503497]
[1750819051709,6.8444,146.03,146.01,8.46963497]
[1750819052518,6.8444,146.03,146.01,15.31483497]
[1750819053019,10.2194403,146.04,146.01,15.31483497]
[1750819053924,6.8444,146.03,146.01,8.46963497]
[1750819054308,3.3753403,146.04,146.0,8.46963497]
[1750819054508,6.8448,146.02,145.99,15.31563497]
[1750819055710,6.8448,146.02,146.0,15.31533497]
[1750819055913,6.8448,146.02,146.0,6.8457]
[1750819056227,42.1446,146.03,146.0,6.8457]
[1750819056426,35.3,146.03,146.01,6.8451]
[1750819056723,35.3,146.03,146.01,8.46963497]
[1750819057025,42.1446,146.03,146.01,8.46963497]
[1750819059526,35.3,146.03,146.01,15.31463497]
[1750819059719,35.3,146.03,146.02,8.46963497]
[1750819060434,35.3,146.03,146.02,15.31443497]
[1750819062824,35.3,146.03,146.02,8.46963497]
[1750819063529,42.1443,146.03,146.02,8.46963497]
[1750819063726,38.6753403,146.03,146.01,8.46963497]
[1750819063931,38.6753403,146.03,145.96,43.3690403]
[1750819063932,4.13710998,146.02,145.96,12.70445246]
[1750819064129,3.3753403,145.98,145.96,12.70445246]
[1750819064427,3.3784541,145.97,145.94,12.70445246]
[1750819064636,3.3784541,145.97,145.95,6.8478]
[1750819064821,3.3784541,145.97,145.94,12.70445246]
[1750819065020,6.8479,145.96,145.93,14.98405246]
[1750819065826,6.8482,145.95,145.93,2.2796]
[1750819066833,3.3784541,145.97,145.93,2.2796]
[1750819067337,10.2260541,145.97,145.94,6.8483]
[1750819067632,10.2260541,145.97,145.93,2.2796]
[1750819067840,6.8482,145.95,145.93,2.2796]
[1750819069636,6.8482,145.95,145.91,2.2404]
[1750819069637,6.8489,145.94,145.91,6.8499]
[1750819070935,6.8489,145.94,145.89,12.70445246]
[1750819071337,6.8489,145.94,145.88,16.08290656]
[1750819071536,6.8489,145.94,145.91,6.8497]
[1750819074443,6.8489,145.94,145.92,6.37037584]
[1750819075440,35.28,145.95,145.92,6.37037584]
[1750819075642,42.1283,145.95,145.92,13.21967584]
[1750819076146,42.1283,145.95,145.93,6.37037584]
[1750819076346,42.1283,145.95,145.92,13.21967584]
[1750819076549,42.1283,145.95,145.93,6.37037584]
[1750819076754,42.1283,145.95,145.92,13.21967584]
[1750819077052,42.1283,145.95,145.93,6.37037584]
[1750819077751,42.1283,145.95,145.92,13.21967584]
[1750819078156,35.28,145.95,145.93,6.849]
[1750819078354,35.28,145.98,145.93,6.37037584]
[1750819078651,38.65904322,146.02,145.97,6.37037584]
[1750819079054,38.65904322,146.02,145.96,6.37037584]
[1750819079354,38.65904322,146.02,145.97,6.37037584]
[1750819079556,6.846,146.0,145.97,13.21727584]
[1750819080157,6.8462,145.99,145.97,6.37037584]
[1750819080456,6.8462,145.99,145.96,13.21777584]
[1750819080658,6.8462,145.99,145.97,6.37037584]
[1750819081254,6.8462,145.99,145.97,13.21747584]
[1750819081453,6.846,146.0,145.97,6.37037584]
[1750819081960,6.846,146.0,145.97,13.21727584]
[1750819082153,35.28,146.02,145.97,6.37037584]
[1750819082459,35.28,146.02,145.99,6.37037584]
[1750819082659,630.05904322,146.05,145.99,6.37037584]
[1750819082855,630.05904322,146.05,146.0,6.8454]
[1750819083051,630.05904322,146.05,145.99,6.37037584]
[1750819083252,630.05904322,146.05,146.0,6.37037584]
[1750819083448,630.05904322,146.05,145.99,6.37037584]
[1750819085251,6.8451,146.02,145.99,13.21657584]
[1750819085453,630.05904322,146.05,145.99,6.37037584]
[1750819085953,6.8449,146.02,145.99,13.21657584]
[1750819086154,626.68,146.05,146.0,6.37037584]
[1750819086455,3.37904322,146.04,146.0,6.37037584]
[1750819086858,6.8446,146.03,145.99,6.37037584]
[1750819087159,6.8446,146.03,146.0,6.37037584]
[1750819087361,626.68,146.05,146.0,6.37037584]
[1750819087551,626.68,146.05,146.01,6.37037584]
[1750819087748,35.28,146.05,146.01,6.37037584]
[1750819088657,35.28,146.05,146.02,6.37037584]
[1750819088859,35.28,146.05,146.03,6.37037584]
[1750819089163,35.28,146.05,146.03,13.21437584]
[1750819089955,35.28,146.05,146.04,6.8439]
[1750819090257,35.28,146.05,146.03,6.37037584]
[1750819090463,35.28,146.05,146.02,6.37037584]
[1750819090665,35.28,146.05,146.03,6.8439]
[1750819091062,35.28,146.05,146.02,6.37037584]
[1750819091863,35.28,146.05,146.04,6.8439]
[1750819094163,38.65395261,146.05,146.01,8.78947584]
[1750819094759,6.8441,146.04,146.01,15.63447584]
[1750819095156,6.8441,146.04,146.02,6.8447]
[1750819095870,6.8441,146.04,146.01,15.63457584]
[1750819096265,38.65395261,146.05,146.0,6.37037584]
[1750819096768,6.845,146.02,146.0,6.37037584]
[1750819097161,6.845,146.02,145.99,13.21627584]
[1750819097370,6.8453,146.01,145.99,13.21627584]
[1750819097559,6.8453,146.01,145.98,13.21687584]
[1750819097764,3.37395261,146.03,145.98,6.37037584]
[1750819098265,6.8451,146.02,145.99,6.8461]
[1750819098661,3.37395261,146.03,145.98,6.37037584]
[1750819098861,6.8453,146.01,145.98,6.37037584]
[1750819100266,6.8453,146.01,145.99,6.8462]
[1750819101564,6.845,146.02,145.99,6.8462]
[1750819101964,38.65395261,146.05,146.0,6.37037584]
[1750819102371,3.37395261,146.03,145.99,13.21627584]
[1750819102674,6.8451,146.02,145.99,13.21627584]
[1750819103070,6.8451,146.02,145.99,6.8459]
[1750819103775,6.8451,146.02,145.99,13.21627584]
[1750819104971,6.8446,146.03,146.0,13.21597584]
[1750819106272,6.8448,146.02,146.0,6.8456]
[1750819106473,6.8448,146.02,145.99,13.21637584]
[1750819107378,6.8448,146.02,145.99,6.37037584]
[1750819108377,6.8448,146.02,145.99,13.21637584]
[1750819108576,6.8448,146.02,145.99,6.37037584]
[1750819108777,10.21845261,146.03,145.99,6.37037584]
[1750819109679,10.21845261,146.03,146.0,6.8455]
[1750819109879,6.8445,146.03,145.99,6.37037584]
[1750819110068,6.8445,146.03,146.0,6.37037584]
[1750819110267,6.8445,146.03,146.0,13.21587584]
[1750819110783,6.8445,146.03,146.01,6.8452]
[1750819110977,6.8445,146.03,146.0,6.37037584]
[1750819111374,38.65395261,146.05,146.0,6.37037584]
[1750819111577,38.65395261,146.05,146.01,6.37037584]
[1750819112171,45.49785261,146.05,146.02,6.8445]
[1750819112681,45.49745261,146.05,146.02,6.8445]
[1750819112885,35.28,146.05,146.04,6.8439]
[1750819113569,42.0622,146.08,146.05,6.8433]
[1750819114183,6.8425,146.07,146.04,6.8437]
[1750819115184,6.8425,146.07,146.04,13.21407584]
[1750819118085,35.22,146.08,146.04,6.37037584]
[1750819118284,630.13395261,146.12,146.06,6.37037584]
[1750819118678,3.37395261,146.1,146.06,6.37037584]
[1750819119175,6.8423,146.08,146.06,6.37037584]
[1750819120384,6.8423,146.08,146.07,6.37037584]
[1750819120585,6.8423,146.08,146.06,6.37037584]
[1750819121383,6.8423,146.08,146.07,6.37037584]
[1750819122182,6.8417,146.09,146.07,6.37037584]
[1750819122384,3.37395261,146.1,146.07,6.37037584]
[1750819123788,6.8415,146.09,146.07,6.37037584]
[1750819125094,10.21525261,146.1,146.07,13.21267584]
[1750819125282,3.37395261,146.1,146.07,6.37037584]
[1750819126290,6.8418,146.09,146.07,6.37037584]
[1750819126689,3.37395261,146.1,146.07,6.37037584]
[1750819126887,6.8419,146.09,146.07,6.37037584]
[1750819128490,6.842,146.08,146.07,6.37037584]
[1750819129295,6.8425,146.07,146.06,6.37037584]
[1750819129489,6.8425,146.07,146.01,4.8112]
[1750819129490,6.8425,146.07,146.05,6.37037584]
[1750819130696,6.8429,146.06,146.05,6.37037584]
[1750819130891,38.53395261,146.08,146.05,6.37037584]
[1750819131393,38.53395261,146.08,146.06,6.37037584]
[1750819131598,35.16,146.08,146.06,6.37037584]
[1750819131799,42.0024,146.08,146.06,6.37037584]
[1750819131990,42.0024,146.08,146.05,13.21347584]
[1750819132496,6.8426,146.07,146.05,6.37037584]
[1750819132699,38.53395261,146.08,146.05,6.37037584]
[1750819132897,38.53395261,146.08,146.04,6.37037584]
[1750819134295,6.8427,146.07,146.04,6.37037584]
[1750819136287,6.8432,146.06,146.04,6.37037584]
[1750819136494,38.53395261,146.08,146.04,6.37037584]
[1750819137302,6.8433,146.06,146.04,6.37037584]
[1750819138001,6.8434,146.05,146.04,6.37037584]
[1750819138402,38.53395261,146.08,146.04,6.37037584]
[1750819138602,6.8431,146.06,146.04,6.37037584]
[1750819143403,6.8434,146.05,146.04,6.37037584]
[1750819147502,6.8439,146.04,146.03,6.37037584]
[1750819148998,6.8446,146.03,146.01,8.46462175]
[1750819149599,6.8446,146.03,146.02,6.37586881]
[1750819151106,3.37395261,146.06,146.01,8.46462175]
[1750819151300,3.37395261,146.06,146.03,6.37461757]
[1750819151899,6.8438,146.05,146.04,6.37461757]
[1750819153109,6.8438,146.05,146.01,6.8449]
[1750819153110,6.8439,146.04,146.03,6.37461757]
[1750819153297,6.8439,146.04,146.02,8.46462175]
[1750819153807,6.8436,146.05,146.02,8.46462175]
[1750819154105,6.8436,146.05,146.04,6.37719671]
[1750819161308,6.8431,146.06,146.03,8.46462175]
[1750819161508,6.8431,146.06,146.05,6.3806203]
[1750819162209,6.8431,146.06,146.04,8.46462175]
[1750819162707,6.8434,146.05,146.04,8.46462175]
[1750819163506,6.8434,146.05,146.03,8.46462175]
[1750819164106,3.37416853,146.06,146.02,8.46462175]
[1750819164310,3.37416853,146.06,146.03,6.38356655]
[1750819164506,7.48619162,146.06,146.03,6.38356655]
[1750819164701,3.37416853,146.06,146.03,6.38356655]
[1750819164902,7.48619162,146.06,146.03,6.38356655]
[1750819165106,3.37416853,146.06,146.03,6.38356655]
[1750819165311,7.48619162,146.06,146.03,6.38356655]
[1750819165511,3.37416853,146.06,146.03,6.38356655]
[1750819165708,7.48619162,146.06,146.03,6.38356655]
[1750819165909,3.37416853,146.06,146.03,6.38356655]
[1750819166101,6.8439,146.04,146.03,6.38356655]
[1750819166306,10.21806853,146.04,146.03,6.38356655]
[1750819166506,3.37416853,146.04,146.02,6.38356655]
[1750819166708,6.8443,146.03,146.02,6.38356655]
[1750819173413,6.8443,146.03,146.01,8.46462175]
[1750819174026,41.964,146.04,146.01,15.30972175]
[1750819174225,35.12,146.04,146.03,8.46462175]
[1750819174522,35.12,146.04,146.02,12.70445246]
[1750819174721,3.37518836,146.06,146.02,12.70445246]
[1750819174921,6.8434,146.05,146.04,8.51456548]
[1750819175113,35.12,146.07,146.04,8.51456548]
[1750819175317,35.12,146.07,146.06,6.38588155]
[1750819175923,41.9628,146.07,146.06,6.38588155]